[Event "German Bundesliga 2023-24"]
[Site "Germany"]
[Date "2024.02.24"]
[Round "10.47"]
[White "Hausrath, Daniel"]
[Black "Winterberg, Lukas"]
[Result "1-0"]
[ECO "E05"]
[WhiteElo "2462"]
[BlackElo "2410"]
[Annotator "TA"]
[PlyCount "119"]
[EventDate "2023.10.20"]
[EventType "team-tourn"]
[EventCountry "GER"]
[SourceTitle "playchess.com"]
[Source "ChessBase"]
[SourceQuality "1"]
[TimeControl "40/6000+30:3000+30"]

{[%evp 49,119,14,14,12,40,42,49,44,54,41,51,48,52,48,43,30,99,80,126,114,132,118,174,157,199,219,225,213,227,212,216,205,233,238,254,241,276,275,368,357,407,403,1315,1262,1487,1429,1291,1389,1727,1634,2448,2133,5701,6087,6207,11450,29966,29948,29972,1612,1612,1534,29975,29976,29976,29977,29973,851,29979,29980,29981,29981]} 1. Nf3 {[%emt 0:00:03]} Nf6 {[%emt 0:00:13]} 2. g3 {[%emt 0:00:10]} e6 {[%emt 0:00:09]} 3. Bg2 {[%emt 0:00:08]} d5 {[%emt 0:00:09]} 4. d4 {[%emt 0:01:35]} Be7 {[%emt 0:00:15]} 5. O-O {[%emt 0:00:44]} O-O {[%emt 0:00:09]} 6. c4 {[%emt 0:00:04]} dxc4 {[%emt 0:00:13]} 7. Qa4 {[%emt 0:00:23]} a6 {[%emt 0:00:35]} 8. Qxc4 {[%emt 0:00:06]} b5 {[%emt 0:00:12]} 9. Qc2 {[%emt 0:00:08]} Bb7 {[%emt 0:00:12]} 10. Bf4 {[%emt 0:00:47]} Nd5 {[%emt 0:04:15]} 11. Nbd2 {[%emt 0:07:03]} Nd7 {[%emt 0:01:33] E05: Open Catalan: 5 Nf3 Be7.} 12. Nb3 {[%emt 0:04:00]} c5 {[%emt 0:12:56]} 13. dxc5 {[%emt 0:22:54]} Rc8 {[%emt 0:02:40]} 14. Rad1 {[%emt 0:17:18]} Bxc5 {[%emt 0:11:56]} 15. Nxc5 {[%emt 0:08:02]} Rxc5 {[%emt 0:00:25]} 16. Qd2 {[%emt 0:04:26]} Nxf4 {[%emt 0:03:10]} 17. Qxf4 {[%emt 0:01:53]} Qc8 $146 {[%emt 0:02:56]} ({Predecessor:} 17... Qc7 18. Qxc7 Rxc7 19. Rd6 Nf6 20. Rfd1 g6 21. Ne1 Bxg2 22. Kxg2 Ra8 23. Rd8+ Rxd8 24. Rxd8+ {1-0 Damljanovic,B (2587)-Ivanovic,B (2428) Bar Sozina op 2005 (2)}) 18. Rc1 {[%emt 0:06:24]} Nf6 {[%emt 0:09:04]} 19. Rxc5 {[%emt 0:04:15]} Qxc5 {[%emt 0:00:37]} 20. Rc1 {[%emt 0:00:01]} Qb6 {[%emt 0:11:14]} 21. Qc7 {[%emt 0:03:06]} Nd5 {[%emt 0:00:13]} 22. Qxb6 {[%emt 0:00:39]} Nxb6 {[%emt 0:00:04]} 23. Rc7 {[%emt 0:03:34]} Bd5 {[%emt 0:00:25]} 24. b3 {[%emt 0:13:58]} Rc8 {[%emt 0:01:18]} 25. Rxc8+ {[%emt 0:00:23]} Nxc8 {[%emt 0:00:03]} 26. Ne5 {[%emt 0:00:40]} Nb6 {[%emt 0:01:30]} 27. e4 {[%emt 0:01:44]} Bb7 {[%emt 0:00:12]} 28. Nd3 {[%emt 0:01:31]} a5 {[%emt 0:01:40]} 29. f4 {[%emt 0:01:09]} Kf8 {[%emt 0:04:08]} 30. Kf2 {[%emt 0:01:28]} Ke7 {[%emt 0:00:12]} 31. Ke3 {[%emt 0:01:02]} Nd7 {[%emt 0:04:18]} 32. Kd4 {[%emt 0:01:29]} f6 {[%emt 0:00:14]} (32... f5 $1 $11) 33. Bh3 $16 {[%emt 0:00:53]} Bc6 {[%emt 0:06:20]} ({Black should try} 33... a4) 34. e5 $16 {[%emt 0:00:42]} Bd5 {[%emt 0:07:41]} 35. Bf1 {[%emt 0:02:00]} b4 {[%emt 0:08:35]} (35... Bc6 $16 36. b4 fxe5+ 37. fxe5 a4) 36. Nb2 $18 {[%emt 0:00:52]} fxe5+ {[%emt 0:02:37]} 37. fxe5 {[%emt 0:00:01]} Nb8 {[%emt 0:01:46]} 38. Bb5 {[%emt 0:00:37]} Kd8 {[%emt 0:02:11]} 39. Nd3 {[%emt 0:01:41]} g5 {[%emt 0:00:54]} 40. h4 {[%emt 0:00:51]} h6 {[%emt 0:00:16]} 41. Nf2 {[%emt 0:07:32]} Kc7 {[%emt 0:03:27]} 42. Kc5 {[%emt 0:07:49]} Bc6 {[%emt 0:02:41]} 43. Bxc6 {[%emt 0:03:57]} Nxc6 {[%emt 0:00:03]} 44. Nd3 {[%emt 0:00:16]} g4 {[%emt 0:03:54]} 45. h5 {[%emt 0:09:54]} Kb7 {[%emt 0:04:07]} (45... Ne7 $142 46. Nf2 Nf5) 46. Kd6 $18 {[%emt 0:01:48]} Nd4 {[%emt 0:00:18]} 47. Nf2 {[%emt 0:01:57]} Ka6 {[%emt 0:04:20]} 48. Nxg4 {[%emt 0:03:42]} Kb5 {[%emt 0:05:31]} 49. Ne3 {[%emt 0:04:12]} a4 {[%emt 0:00:22]} 50. bxa4+ {[%emt 0:04:40]} Kxa4 {[%emt 0:00:12]} 51. g4 {[%emt 0:00:26]} Ka3 {[%emt 0:01:54]} 52. g5 {[%emt 0:03:43]} Kxa2 {[%emt 0:00:12]} 53. gxh6 {[%emt 0:00:13]} b3 {[%emt 0:00:32]} 54. h7 {[%emt 0:00:08]} (54. Kc5 $142 Nf5 55. h7 (55. Nxf5 b2 $18) 55... Nxe3 56. h8=Q (56. h8=R Kb1 $18) 56... b2 57. Qa8+ Kb3 58. Qb7+ Ka2 59. Qa6+ (59. h6 b1=Q $18) 59... Kb3 60. Qd3+ (60. Qxe6+ Kc3 $18) 60... Ka2 61. Qa6+ (61. Qxe3 b1=Q 62. Qd2+ Ka3 63. Qa5+ Kb2 64. Qb6+ Kc2 65. Qxb1+ Kxb1) 61... Kb1 62. Qxe6) 54... b2 $18 {[%emt 0:00:16]} 55. h8=Q {[%emt 0:00:12]} (55. h8=R $2 {loses.} b1=Q (55... b1=R $2 56. Ra8+ Kb2 57. Rb8+ Nb3 58. h6 $18) 56. Ra8+ Kb2 57. Rb8+ Nb3 58. Kxe6 Qh7 $19) 55... b1=Q {[%emt 0:00:13]} 56. Qa8+ {[%emt 0:00:33]} Kb2 {[%emt 0:00:15]} 57. Qb7+ {[%emt 0:01:07]} Nb3 {[%emt 0:00:18]} 58. Kxe6 {[%emt 0:00:57]} (58. Qg2+ $142 Ka3 59. Nc2+ (59. Kxe6 Nc5+ 60. Kd5 Qd3+ 61. Kxc5 Qxe3+ 62. Kd6 Qb6+ 63. Qc6 Qd8+ 64. Qd7 Qb6+ 65. Ke7 Qa5 $18) 59... Kb2 60. Nd4+ Kc3 61. Qc2+ (61. Nxe6 Qd1+ 62. Qd5 Qxh5 $18) (61. Nxb3 Qd3+ 62. Kxe6 Qc4+ 63. Qd5 Qa6+ 64. Ke7 Qa7+ 65. Kf8 Qh7 $18) 61... Qxc2 62. Nxc2 Kxc2 63. h6 (63. Kxe6 Kd3 $18)) 58... Qd3 {[%emt 0:02:40]} 59. Qg2+ {[%emt 0:00:23]} Kc3 {[%emt 0:02:22]} 60. Qc2+ {[%emt 0:00:30]} 1-0

[Event "German Bundesliga 2023-24"]
[Site "Germany"]
[Date "2024.02.24"]
[Round "10.48"]
[White "Tica, Sven"]
[Black "Saltaev, Mihail"]
[Result "1/2-1/2"]
[ECO "E06"]
[WhiteElo "2444"]
[BlackElo "2441"]
[Annotator "TA"]
[PlyCount "105"]
[EventDate "2023.10.20"]
[EventType "team-tourn"]
[EventCountry "GER"]
[SourceTitle "playchess.com"]
[Source "ChessBase"]
[SourceQuality "1"]
[TimeControl "40/6000+30:3000+30"]

{[%evp 18,105,11,9,8,0,23,15,39,35,47,35,47,35,34,36,31,8,12,4,15,19,22,22,29,17,12,15,13,13,7,11,10,16,25,0,22,0,0,0,0,0,0,0,0,-4,0,0,0,0,0,0,0,0,0,-11,0,0,0,0,0,0,8,0,0,0,0,0,0,0,8,8,8,8,8,0,0,0,0,0,0,0,0,0,0,0,0,0,0,0]} 1. d4 {[%emt 0:00:05]} d5 {[%emt 0:00:06]} 2. c4 {[%emt 0:00:10]} e6 {[%emt 0:00:05]} 3. Nf3 {[%emt 0:00:06]} Nf6 {[%emt 0:00:10]} 4. g3 {[%emt 0:00:07]} Be7 {[%emt 0:01:07]} 5. Bg2 {[%emt 0:00:08]} O-O {[%emt 0:00:10]} 6. Nc3 {[%emt 0:00:09]} dxc4 {[%emt 0:01:33]} 7. Ne5 {[%emt 0:00:07]} c5 {[%emt 0:00:16]} 8. dxc5 {[%emt 0:00:08]} Qxd1+ {[%emt 0:00:06]} 9. Nxd1 {[%emt 0:00:06]} Bxc5 {[%emt 0:00:29]} 10. Nxc4 {[%emt 0:00:07]} Nd5 {[%emt 0:21:01]} 11. Nc3 {[%emt 0:11:41]} Nxc3 {[%emt 0:13:08]} 12. bxc3 {[%emt 0:00:07]} Nc6 {[%emt 0:00:10]} 13. Rb1 {[%emt 0:01:54]} f6 {[%emt 0:05:58]} 14. Rb5 {[%emt 0:08:42]} Be7 {[%emt 0:02:43]} 15. O-O {[%emt 0:04:11]} Rd8 {[%emt 0:06:10]} 16. f4 {[%emt 0:11:31]} Rd7 {[%emt 0:02:05][%cal Bd8d7,Bd7c7,Bc7c3,Bc3a3][%mdl 32]} 17. Be3 {[%emt 0:11:52]} Rc7 {[%emt 0:04:11]} 18. Rfb1 {[%emt 0:19:44]} Nd8 {[%emt 0:00:43]} 19. Na5 {[%emt 0:00:16]} Rxc3 {[%emt 0:00:33]} 20. Kf2 {[%emt 0:02:03][%cal Ra5b7]} Ra3 {[%emt 0:12:32]} 21. Nxb7 {[%emt 0:06:55]} Nxb7 {[%emt 0:09:21]} 22. Bxb7 {[%emt 0:03:09]} Bxb7 {[%emt 0:01:59]} 23. Rxb7 {[%emt 0:00:06]} Bd6 {[%emt 0:00:08]} 24. Rd7 {[%emt 0:02:20]} Bf8 {[%emt 0:01:05]} 25. Rb2 {[%emt 0:01:08]} a6 {[%emt 0:02:26]} 26. g4 {[%emt 0:03:50]} h6 {[%emt 0:03:01] The position is equal.} 27. h4 {[%emt 0:03:51]} Rc8 {[%emt 0:02:45]} 28. g5 {[%emt 0:07:15]} hxg5 {[%emt 0:00:36]} 29. hxg5 {[%emt 0:00:47]} fxg5 {[%emt 0:00:13]} 30. fxg5 {[%emt 0:00:44]} Kh7 {[%emt 0:00:22]} 31. Bd4 {[%emt 0:04:23]} Kg6 {[%emt 0:04:05]} 32. e3 {[%emt 0:00:33]} Ra5 {[%emt 0:00:40]} 33. Kf3 {[%emt 0:01:03]} Re8 {[%emt 0:09:30]} (33... Kxg5 34. Rg2+ Kh6 35. Bxg7+ Bxg7 36. Rdxg7) 34. Ra7 {[%emt 0:01:51]} e5 {[%emt 0:00:41]} 35. Bc3 {[%emt 0:00:28]} e4+ {[%emt 0:03:30]} 36. Kf2 {[%emt 0:00:40]} Ra3 {[%emt 0:01:15]} 37. Bd4 {[%emt 0:02:54]} Kxg5 {[%emt 0:00:50]} 38. Kg1 {[%emt 0:00:43]} Ra5 {[%emt 0:02:06]} 39. Rf7 {[%emt 0:03:11][%cal Ob2f2]} g6 {[%emt 0:01:18]} 40. Rbf2 {[%emt 0:00:07][%cal Of7h7] [#] Hoping for Rh7!} Rf5 {[%emt 0:00:11]} 41. Rg2+ {[%emt 0:09:36]} Kh6 $1 {[%emt 0:01:28]} 42. Rh2+ {[%emt 0:08:37]} Rh5 {[%emt 0:00:08]} 43. Rhf2 {[%emt 0:00:15]} Rf5 {[%emt 0:00:50]} 44. R7xf5 {[%emt 0:03:28]} gxf5 {[%emt 0:01:12]} 45. Rxf5 {[%emt 0:00:05]} Bg7 {[%emt 0:00:24]} 46. Bxg7+ {[%emt 0:04:36]} Kxg7 $11 {[%emt 0:00:02][%mdl 4096] Endgame. KR-KR} 47. Rg5+ {[%emt 0:00:11]} Kf6 {[%emt 0:14:52]} 48. Ra5 {[%emt 0:01:07]} Ra8 {[%emt 0:00:10]} 49. Kf2 {[%emt 0:00:21]} Ke6 {[%emt 0:00:11]} 50. Ke2 {[%emt 0:05:03]} Ra7 {[%emt 0:00:32]} 51. Ra4 {[%emt 0:02:02]} Ke5 {[%emt 0:00:22]} 52. Ra5+ {[%emt 0:00:05]} Ke6 {[%emt 0:00:06]} 53. Ra4 {[%emt 0:00:04] Weighted Error Value: White=0.03 (flawless) /Black=0.03 (flawless) .  OK:         	White=17    	Black=19     Best:        	---       	Black=2      Strong:       	---       	Black=1} 1/2-1/2

[Event "German Bundesliga 2023-24"]
[Site "Germany"]
[Date "2024.02.24"]
[Round "10.49"]
[White "Nihal Sarin"]
[Black "Nisipeanu, Liviu-Dieter"]
[Result "1-0"]
[ECO "E11"]
[WhiteElo "2693"]
[BlackElo "2600"]
[Annotator "TA"]
[PlyCount "73"]
[EventDate "2023.10.20"]
[EventType "team-tourn"]
[EventCountry "GER"]
[SourceTitle "playchess.com"]
[Source "ChessBase"]
[SourceQuality "1"]
[TimeControl "40/6000+30:3000+30"]

{[%evp 10,73,31,15,29,9,28,40,43,45,47,33,41,32,50,53,49,36,61,58,132,125,120,123,130,122,175,177,181,166,174,171,168,159,200,199,202,207,202,204,205,182,177,182,271,252,343,321,352,358,356,350,342,335,465,428,644,633,712,694,804,805,744,735,1539,1495]} 1. d4 {[%emt 0:00:31]} Nf6 {[%emt 0:00:25]} 2. c4 {[%emt 0:00:07]} e6 {[%emt 0:00:04]} 3. Nf3 {[%emt 0:00:06]} Bb4+ {[%emt 0:00:28]} 4. Bd2 {[%emt 0:02:05]} Qe7 {[%emt 0:01:15]} 5. g3 {[%emt 0:06:27]} Nc6 {[%emt 0:07:27]} 6. Nc3 {[%emt 0:01:18]} O-O {[%emt 0:08:18]} 7. d5 {[%emt 0:10:35]} exd5 {[%emt 0:20:36]} 8. Nxd5 {[%emt 0:01:16]} Bxd2+ {[%emt 0:00:05] White is slightly better.} 9. Qxd2 {[%emt 0:00:10]} Qd8 {[%emt 0:00:03]} 10. Bg2 {[%emt 0:08:05]} d6 {[%emt 0:00:42]} 11. O-O {[%emt 0:00:11][%cal Bh1f1,Bf1a1,Ba1a8][%mdl 32]} Ne4 {[%emt 0:02:07]} 12. Qc2 {[%emt 0:04:44]} Re8 {[%emt 0:00:04]} 13. b4 {[%emt 0:11:15]} a5 {[%emt 0:01:15]} 14. a3 {[%emt 0:05:53][%cal Ba2a3,Ba3b4][%mdl 32]} axb4 {[%emt 0:31:36] Black is now going downhill.} (14... Bd7 $14) 15. axb4 $16 {[%emt 0:00:36]} Rxa1 {[%emt 0:00:23]} 16. Rxa1 {[%emt 0:00:06]} Nf6 {[%emt 0:08:46]} 17. Ra8 $1 {[%emt 0:09:56] Strongly threatening Bh3. White is more active.} Nxd5 {[%emt 0:03:09]} (17... Nd7 $16 18. Bh3 h6) 18. cxd5 $18 {[%emt 0:00:10]} Nxb4 {[%emt 0:00:09]} 19. Qc4 {[%emt 0:01:20]} c5 {[%emt 0:00:07] [#]} 20. Bh3 $1 {[%emt 0:00:48]} Qc7 {[%emt 0:01:38]} 21. Qb5 {[%emt 0:00:44] Prevents Bd7.} Kf8 {[%emt 0:03:10][%cal Oc8d7] [#] ...Bd7! would now be deadly.} 22. Qxe8+ {[%emt 0:01:10][%mdl 512]} Kxe8 {[%emt 0:00:04]} 23. Rxc8+ {[%emt 0:00:07]} Qxc8 {[%emt 0:00:01]} 24. Bxc8 {[%emt 0:00:08]} b5 {[%emt 0:00:01] [#]} 25. e4 {[%emt 0:05:21]} Kd8 {[%emt 0:03:46]} 26. Bh3 {[%emt 0:01:46]} Kc7 {[%emt 0:00:10]} (26... Na2 {was worth a try.} 27. Kf1 c4) 27. Kf1 {[%emt 0:03:09]} Nd3 {[%emt 0:06:12]} 28. Ke2 {[%emt 0:04:35]} c4 {[%emt 0:00:30]} 29. Ke3 {[%emt 0:00:20]} Nb2 {[%emt 0:04:48]} 30. Kd4 {[%emt 0:17:16]} Nd1 {[%emt 0:01:42]} 31. Bf1 {[%emt 0:00:53]} Nxf2 {[%emt 0:00:25]} 32. Ng5 {[%emt 0:00:33][%csl LRf7,LRh7] White is clearly winning.} f6 {[%emt 0:04:42]} (32... Kd7 $142 33. Nxf7 (33. Nxh7 Ke8 $18) 33... Ke7) 33. Ne6+ {[%emt 0:00:20]} Kb6 {[%emt 0:00:04]} 34. Nxg7 {[%emt 0:00:26]} Ka5 {[%emt 0:00:03]} 35. Nf5 {[%emt 0:00:40]} Kb4 {[%emt 0:00:04]} 36. Nxd6 {[%emt 0:00:19]} c3 {[%emt 0:00:13]} 37. Bd3 {[%emt 0:02:10] Weighted Error Value: White=0.04 (flawless) /Black=0.31.  Mistake:       	---       	Black=4      Inaccurate:     	---       	Black=2      OK:         	White=9     	Black=13     Best:        	White=3     	---        Strong:       	White=1     	---        Brilliant:      	White=1     	---} 1-0

[Event "German Bundesliga 2023-24"]
[Site "Germany"]
[Date "2024.02.24"]
[Round "10.50"]
[White "Bartel, Mateusz"]
[Black "Svane, Rasmus"]
[Result "1/2-1/2"]
[ECO "C65"]
[WhiteElo "2651"]
[BlackElo "2646"]
[Annotator "ChessBase"]
[PlyCount "40"]
[EventDate "2023.10.20"]
[EventType "team-tourn"]
[EventCountry "GER"]
[SourceTitle "playchess.com"]
[Source "ChessBase"]
[SourceQuality "1"]
[TimeControl "40/6000+30:3000+30"]

1. e4 {[%emt 0:00:04]} e5 {[%emt 0:00:07]} 2. Nf3 {[%emt 0:00:10]} Nc6 {[%emt 0:00:05]} 3. Bb5 {[%emt 0:00:07]} Nf6 {[%emt 0:00:07]} 4. d3 {[%emt 0:00:07]} Bc5 {[%emt 0:00:10]} 5. Bxc6 {[%emt 0:00:10]} dxc6 {[%emt 0:00:06]} 6. Bg5 {[%emt 0:00:05]} Qd6 {[%emt 0:03:36]} 7. Nbd2 {[%emt 0:01:32]} Be6 {[%emt 0:05:58]} 8. O-O {[%emt 0:04:40]} h6 {[%emt 0:15:21]} 9. Be3 {[%emt 0:11:01]} Nd7 {[%emt 0:07:26]} 10. Qe2 {[%emt 0:04:18]} Rd8 {[%emt 0:09:48]} 11. Rad1 {[%emt 0:09:30]} O-O {[%emt 0:03:54]} 12. Nc4 {[%emt 0:13:57]} Bxc4 {[%emt 0:02:04]} 13. dxc4 {[%emt 0:00:04]} Qe7 {[%emt 0:00:21]} 14. Bd2 {[%emt 0:00:09]} Bb4 {[%emt 0:09:00]} 15. Bc1 {[%emt 0:05:35]} Rfe8 {[%emt 0:03:44]} 16. c3 {[%emt 0:17:09]} Bd6 {[%emt 0:01:16]} 17. g3 {[%emt 0:00:03]} Qe6 {[%emt 0:02:12]} 18. Nh4 {[%emt 0:00:16]} Bf8 {[%emt 0:00:56]} 19. b3 {[%emt 0:04:53]} Nf6 {[%emt 0:07:41]} 20. f3 {[%emt 0:03:47]} a6 {[%emt 0:05:47]} 1/2-1/2

[Event "German Bundesliga 2023-24"]
[Site "Germany"]
[Date "2024.02.24"]
[Round "10.51"]
[White "Mendonca, Leon Luke"]
[Black "Michalik, Peter"]
[Result "1/2-1/2"]
[ECO "D12"]
[WhiteElo "2614"]
[BlackElo "2576"]
[Annotator "TA"]
[PlyCount "62"]
[EventDate "2023.10.20"]
[EventType "team-tourn"]
[EventCountry "GER"]
[SourceTitle "playchess.com"]
[Source "ChessBase"]
[SourceQuality "1"]
[TimeControl "40/6000+30:3000+30"]

{[%evp 11,62,23,33,17,18,20,21,10,12,12,43,32,29,20,33,19,32,11,35,20,20,1,35,22,31,22,37,17,14,0,0,0,0,0,0,0,0,0,0,0,0,0,0,0,0,0,0,0,0,0,0,0,0]} 1. d4 {[%emt 0:00:03]} d5 {[%emt 0:00:05]} 2. c4 {[%emt 0:00:13]} c6 {[%emt 0:00:06]} 3. Nf3 {[%emt 0:00:10]} Nf6 {[%emt 0:00:07]} 4. e3 {[%emt 0:00:04]} Bf5 {[%emt 0:00:23]} 5. Nc3 {[%emt 0:00:06]} e6 {[%emt 0:00:06]} 6. Nh4 {[%emt 0:00:04]} Bg6 {[%emt 0:00:21]} 7. Be2 {[%emt 0:00:38]} Nbd7 {[%emt 0:00:25]} 8. O-O {[%emt 0:01:20]} Be7 {[%emt 0:01:07]} 9. Nxg6 {[%emt 0:04:49]} hxg6 {[%emt 0:00:19]} 10. Bd2 {[%emt 0:01:03]} O-O {[%emt 0:00:56]} 11. Qb3 {[%emt 0:02:15]} Rb8 {[%emt 0:07:50]} 12. Rfd1 {[%emt 0:03:47]} Bd6 {[%emt 0:04:54]} 13. Rac1 {[%emt 0:13:05]} Qe7 {[%emt 0:03:05]} 14. Be1 {[%emt 0:04:11]} (14. c5 $5 Bc7 $8 15. Qc2 $11) 14... a6 {[%emt 0:06:33]} 15. a3 {[%emt 0:07:26]} Rfd8 {[%emt 0:08:12]} 16. g3 {[%emt 0:07:00]} dxc4 {[%emt 0:05:47]} 17. Qxc4 {[%emt 0:04:23]} e5 {[%emt 0:02:37]} 18. dxe5 {[%emt 0:03:48]} Bxe5 {[%emt 0:00:42]} 19. a4 {[%emt 0:12:52]} Bd6 {[%emt 0:07:05] The position is equal.} 20. a5 {[%emt 0:13:15]} Bb4 {[%emt 0:02:15]} 21. Na4 {[%emt 0:05:54]} Bxe1 {[%emt 0:04:04]} 22. Rxe1 {[%emt 0:00:02]} Ne5 {[%emt 0:04:36]} 23. Qc5 {[%emt 0:03:46]} Qe6 {[%emt 0:01:08]} (23... Qxc5 {simplifies} 24. Nxc5 Rd2 25. f4 Ned7) 24. Red1 {[%emt 0:03:36] Repels Rd2} Ne4 {[%emt 0:06:57] A dynamic duo of knights.} 25. Qb4 {[%emt 0:03:37]} Qf5 {[%emt 0:16:57]} 26. f4 {[%emt 0:00:41]} Ng4 {[%emt 0:00:31]} 27. Bxg4 {[%emt 0:10:21]} Qxg4 {[%emt 0:00:06]} 28. Rxd8+ {[%emt 0:00:04]} Rxd8 {[%emt 0:00:05]} 29. Qxe4 {[%emt 0:00:03] [#] aiming for Qc2.} Rd1+ {[%emt 0:00:06]} 30. Rxd1 {[%emt 0:00:03]} Qxd1+ {[%emt 0:00:06]} 31. Kg2 {[%emt 0:00:02] Hoping for Nc3.} Qe2+ {[%emt 0:00:07] Weighted Error Value: White=0.07 (flawless) /Black=0.05 (flawless) .  Inaccurate:     	---       	Black=2      OK:         	White=6     	Black=11     Best:        	White=3     	Black=2} 1/2-1/2

[Event "German Bundesliga 2023-24"]
[Site "Germany"]
[Date "2024.02.24"]
[Round "10.52"]
[White "Gajewski, Grzegorz"]
[Black "Kempinski, Robert"]
[Result "1/2-1/2"]
[ECO "A10"]
[WhiteElo "2561"]
[BlackElo "2554"]
[Annotator "TA"]
[PlyCount "52"]
[EventDate "2023.10.20"]
[EventType "team-tourn"]
[EventCountry "GER"]
[SourceTitle "playchess.com"]
[Source "ChessBase"]
[SourceQuality "1"]
[TimeControl "40/6000+30:3000+30"]

{[%evp 9,52,10,27,9,49,40,43,37,39,20,46,0,0,-16,-10,-5,-2,-10,-11,-6,-11,-16,-14,-5,-8,-25,-4,-9,0,-9,0,-14,0,-66,-50,-47,-41,-42,-45,-43,-39,-43,-27,-21,-10]} 1. c4 {[%emt 0:00:03]} b6 {[%emt 0:01:02]} 2. Nc3 {[%emt 0:00:12]} Bb7 {[%emt 0:00:43]} 3. e4 {[%emt 0:00:18]} e5 {[%emt 0:01:43]} 4. Nf3 {[%emt 0:00:12]} Nc6 {[%emt 0:00:09]} 5. a3 {[%emt 0:00:36]} Nf6 {[%emt 0:06:50]} 6. d3 {[%emt 0:09:57]} Bc5 {[%emt 0:05:43]} 7. b4 {[%emt 0:00:51]} Bd4 {[%emt 0:02:16]} 8. Nxd4 {[%emt 0:05:47] White is slightly better.} Nxd4 {[%emt 0:01:33]} 9. Be3 {[%emt 0:01:43]} O-O {[%emt 0:07:40]} 10. Be2 {[%emt 0:11:27]} (10. g3 $1 $14 {feels stronger.}) 10... c6 $11 {[%emt 0:07:01]} 11. O-O {[%emt 0:16:35]} d5 {[%emt 0:03:16]} 12. exd5 {[%emt 0:02:54]} Nxe2+ {[%emt 0:16:26]} 13. Qxe2 {[%emt 0:00:08]} cxd5 {[%emt 0:00:08] [#] Hoping for ...d4.} 14. Bg5 {[%emt 0:00:24]} d4 {[%emt 0:00:46]} 15. Nb1 {[%emt 0:00:14]} h6 {[%emt 0:04:30]} 16. Bxf6 {[%emt 0:05:14]} Qxf6 {[%emt 0:00:18]} 17. Nd2 {[%emt 0:00:05]} Qg6 {[%emt 0:03:25][%csl Gb7][%cal Rg6g2] [#]} 18. f3 $1 {[%emt 0:00:07]} Rfe8 {[%emt 0:00:31]} 19. Rfc1 {[%emt 0:03:02]} Rac8 {[%emt 0:04:16]} 20. a4 {[%emt 0:02:48]} f5 {[%emt 0:02:32]} 21. c5 {[%emt 0:10:35]} ({Better is} 21. Re1 $11) 21... e4 {[%emt 0:11:48]} 22. fxe4 {[%emt 0:01:33]} fxe4 {[%emt 0:02:14]} 23. Nxe4 {[%emt 0:00:59]} Bxe4 {[%emt 0:01:07]} 24. dxe4 {[%emt 0:00:05]} Rxe4 {[%emt 0:00:14]} 25. Qc4+ {[%emt 0:01:28]} Kh7 {[%emt 0:01:42] aiming for ...bxc5.} 26. Ra3 {[%emt 0:08:54]} bxc5 {[%emt 0:06:33] Weighted Error Value: White=0.11 (very precise) /Black=0.10 (very precise) .  Mistake:       	White=2     	---        Inaccurate:     	---       	Black=2      OK:         	White=7     	Black=7      Best:        	White=1     	---        Strong:       	White=1     	---} 1/2-1/2

[Event "German Bundesliga 2023-24"]
[Site "Germany"]
[Date "2024.02.24"]
[Round "10.53"]
[White "Ernst, Sipke"]
[Black "Vogel, Roven"]
[Result "1/2-1/2"]
[ECO "E04"]
[WhiteElo "2551"]
[BlackElo "2471"]
[Annotator "RC"]
[PlyCount "41"]
[EventDate "2023.10.20"]
[EventType "team-tourn"]
[EventCountry "GER"]
[SourceTitle "playchess.com"]
[Source "ChessBase"]
[SourceQuality "1"]
[TimeControl "40/6000+30:3000+30"]

1. d4 {[%emt 0:00:03]} Nf6 {[%emt 0:00:08]} 2. c4 {[%emt 0:00:06]} e6 {[%emt 0:00:08]} 3. Nf3 {[%emt 0:00:07]} d5 {[%emt 0:00:09]} 4. g3 {[%emt 0:00:04]} dxc4 {[%emt 0:00:24]} 5. Bg2 {[%emt 0:00:04]} a6 {[%emt 0:00:10]} 6. O-O {[%emt 0:00:07]} Nc6 {[%emt 0:00:06]} 7. Bg5 {[%emt 0:01:23]} Be7 {[%emt 0:01:57]} 8. e3 {[%emt 0:01:47]} Rb8 {[%emt 0:08:34]} 9. Nfd2 {[%emt 0:05:49]} e5 {[%emt 0:04:38]} 10. Bxf6 {[%emt 0:04:50]} Bxf6 {[%emt 0:00:23]} 11. d5 {[%emt 0:00:07]} Ne7 {[%emt 0:07:54]} 12. Nxc4 {[%emt 0:11:26]} e4 {[%emt 0:03:26]} 13. d6 {[%emt 0:07:39]} Be6 {[%emt 0:16:29]} 14. Nbd2 {[%emt 0:05:27]} Nf5 {[%emt 0:02:43]} 15. Rc1 {[%emt 0:04:05]} Nxd6 {[%emt 0:22:59]} 16. Nxd6+ {[%emt 0:05:53]} Qxd6 {[%emt 0:01:20]} 17. Nxe4 {[%emt 0:12:11]} Qxd1 {[%emt 0:00:28]} 18. Nxf6+ {[%emt 0:01:00]} gxf6 {[%emt 0:00:13]} 19. Rfxd1 {[%emt 0:00:07]} c6 {[%emt 0:00:44]} 20. a3 {[%emt 0:05:02]} Ke7 {[%emt 0:01:08]} 21. Kf1 {[%emt 0:02:02]} 1/2-1/2